[Event "4NCL 2022-2023"]
[Site "Daventry"]
[Date "2023.02.12"]
[Round "6.36"]
[White "Gallana, Marco"]
[Black "Czopor, Maciej"]
[Result "0-1"]
[ECO "E61"]
[WhiteElo "2257"]
[BlackElo "2412"]
[Annotator "TA"]
[PlyCount "88"]
[EventDate "2022.10.20"]
[EventType "team-tourn"]
[EventCountry "ENG"]
[SourceTitle "playchess.com"]
[Source "ChessBase"]
[SourceQuality "1"]
[TimeControl "40/6000+30:2400+30"]

{[%evp 10,88,28,8,23,21,20,23,39,35,47,34,66,45,59,26,52,18,111,78,73,68,83,82,99,72,87,24,9,12,46,-39,87,78,70,77,82,70,95,96,115,121,138,133,135,76,76,72,75,61,66,67,82,93,107,6,2,12,12,0,12,-8,-8,-3,0,0,0,-38,-10,-81,-43,-164,-161,-754,-826,-812,-790,-774,-753,-856,-851]} 1. c4 {[%emt 0:00:06]} Nf6 {[%emt 0:04:14]} 2. g3 {[%emt 0:00:12]} g6 {[%emt 0:00:22]} 3. Bg2 {[%emt 0:00:14]} Bg7 {[%emt 0:00:05]} 4. Nc3 {[%emt 0:00:12]} O-O {[%emt 0:00:50]} 5. d4 {[%emt 0:00:25]} d6 {[%emt 0:00:29]} 6. h3 {[%emt 0:00:24]} c5 {[%emt 0:10:43] E61: King's Indian: Early deviations for White, including Smyslov System.} 7. e3 {[%emt 0:00:28] [#]} Qc7 $146 {[%emt 0:07:42]} ({Predecessor:} 7... e6 8. dxc5 dxc5 9. Qxd8 Rxd8 10. Nge2 Na6 11. b3 Nb4 12. O-O Rb8 13. Bb2 Bd7 14. Rad1 {½-½ Voveris,G (2423)-Sutovs,A (2327) LAT MT-Pulkis email 2018}) 8. b3 {[%emt 0:12:03]} Bd7 {[%emt 0:09:42] White has an edge.} 9. Nge2 {[%emt 0:04:17]} Qc8 {[%emt 0:01:23]} 10. Bb2 {[%emt 0:06:11]} Nc6 {[%emt 0:03:29]} 11. Rc1 {[%emt 0:01:25]} (11. d5 $5 {[%cal Rd5c6]} Nb4 12. e4 $14) 11... Re8 {[%emt 0:12:49]} 12. Kf1 {[%emt 0:14:22]} h5 {[%emt 0:02:50]} 13. Kg1 {[%emt 0:03:09]} (13. d5 $5 {[%cal Rd5c6]} Nb4 14. e4 $14) 13... h4 {[%emt 0:03:20]} 14. g4 {[%emt 0:01:55]} cxd4 {[%emt 0:01:23]} 15. exd4 {[%emt 0:01:20]} Qb8 {[%emt 0:09:03]} 16. Qd2 {[%emt 0:09:58]} a6 {[%emt 0:13:26]} 17. Nd1 {[%emt 0:14:43]} e6 {[%emt 0:10:49] [#]} 18. Ne3 {[%emt 0:20:50]} (18. d5 $1 $16 exd5 19. cxd5) 18... d5 $1 $11 {[%emt 0:02:31]} 19. g5 {[%emt 0:02:45][%mdl 64] Deflection} Nh5 {[%emt 0:00:01]} 20. Ng4 {[%emt 0:00:43]} (20. Bf3 $1 $14) 20... e5 {[%emt 0:04:08]} (20... a5 $15 {keeps the upper hand.}) 21. cxd5 $16 {[%emt 0:06:47]} (21. Bxd5 $6 exd4 22. Rd1 (22. Nxd4 Qf4 $19) 22... Be6 23. Bxc6 (23. Bxd4 $2 Bxd5 24. cxd5 Rxe2 $19 {[%mdl 64] Remove Defender}) 23... bxc6 24. Bxd4 Rd8 $11) 21... Nxd4 {[%emt 0:00:05]} 22. Nxd4 {[%emt 0:00:22]} exd4 {[%emt 0:00:05]} 23. Bxd4 {[%emt 0:00:45]} Bxd4 {[%emt 0:07:17]} 24. Qxd4 {[%emt 0:01:54]} Bxg4 {[%emt 0:00:02]} 25. hxg4 {[%emt 0:00:21][%mdl 64] [#] Discovered Attack} Nf4 {[%emt 0:00:01] ...Ne2+ would be deadly.} 26. Bf3 {[%emt 0:00:21] Threatens to win with d6.} (26. Rxh4 $2 Ne2+ 27. Kh1 Nxd4 $19) 26... Qe5 {[%emt 0:03:48] Prevents d6.} 27. Qxe5 {[%emt 0:00:24]} ({White should try} 27. Rc4 Qxd4 28. Rxd4 Ne2+ 29. Bxe2 Rxe2 30. Rxh4) 27... Rxe5 {[%emt 0:00:02]} 28. Rd1 {[%emt 0:00:31]} Rd8 {[%emt 0:00:56]} 29. Rxh4 {[%emt 0:04:12]} (29. Kh2 {seems wilder.} f6 30. gxf6 Kf7 31. d6) 29... Rxg5 {[%emt 0:02:31][%cal Od8d7]} 30. Kh2 {[%emt 0:00:30]} Kg7 {[%emt 0:00:32][%cal Og5e5]} 31. Rd4 {[%emt 0:02:06]} Ne6 {[%emt 0:00:14]} 32. Rc4 {[%emt 0:00:15]} (32. dxe6 Rxd4 33. exf7 Rf4 $17) (32. Rb4 $16 Nc7 33. Kg3 (33. Rxb7 Nxd5 34. Be2 Nf6 $16)) 32... b5 $11 {[%emt 0:00:38]} 33. Rc1 {[%emt 0:01:15]} Nf4 {[%emt 0:00:33]} 34. Rc6 {[%emt 0:00:49]} Nxd5 {[%emt 0:00:33]} 35. Rxa6 {[%emt 0:00:52]} Nb4 {[%emt 0:00:27]} 36. Ra7 {[%emt 0:00:28]} Rd2 {[%emt 0:00:25][%csl LRa2,LRf2]} 37. Kg3 {[%emt 0:00:29]} Rxa2 {[%emt 0:01:00]} 38. Rc7 {[%emt 0:00:45]} Nd3 {[%emt 0:00:28]} 39. Rh2 {[%emt 0:00:26]} (39. Rh1 $11 {keeps the balance.}) 39... Rc5 {[%emt 0:00:27]} 40. Rd7 {[%emt 0:00:41] White does not recover from this.} (40. Rxc5 $15 Nxc5 41. b4) 40... Rc3 $19 {[%emt 0:00:25]} 41. Rd4 $2 {[%emt 0:00:37]} (41. Re7) 41... Ne1 {[%emt 0:00:00] Black is clearly winning.} ({Less strong is} 41... Rxb3 42. Bd5 Rab2 43. Bxb3 Rxb3 44. Rh1 $14) 42. Rf4 {[%emt 0:02:30]} Rb2 {[%emt 0:00:00]} 43. Rh1 {[%emt 0:01:27] Prevents Rbxb3.} Nd3 {[%emt 0:00:00]} 44. Rd4 {[%emt 0:01:21]} Ne5 {[%emt 0:00:00] Weighted Error Value: White=0.43/Black=0.14 (very precise)} (44... Rbxb3 $2 {loses.} 45. Be4 $19) ({Inferior is} 44... Nxf2 45. Rh2 $17) 0-1

[Event "4NCL 2022-2023"]
[Site "Daventry"]
[Date "2023.02.12"]
[Round "6.37"]
[White "Derakhshani, Borna"]
[Black "Pein, Jonathan"]
[Result "0-1"]
[ECO "C11"]
[WhiteElo "2380"]
[BlackElo "2256"]
[Annotator "TA"]
[PlyCount "35"]
[EventDate "2022.10.20"]
[EventType "team-tourn"]
[EventCountry "ENG"]
[SourceTitle "playchess.com"]
[Source "ChessBase"]
[SourceQuality "1"]
[TimeControl "40/6000+30:2400+30"]

{[%evp 15,35,15,8,10,16,0,0,0,0,-27,-17,-15,-20,-47,-54,-72,0,0,0,0,0,-17]} 1. e4 {[%emt 0:07:14]} e6 {[%emt 0:00:06]} 2. d4 {[%emt 0:00:05]} d5 {[%emt 0:00:06]} 3. Nc3 {[%emt 0:00:03]} Nf6 {[%emt 0:00:06]} 4. e5 {[%emt 0:00:27]} Nfd7 {[%emt 0:00:06]} 5. f4 {[%emt 0:00:20]} c5 {[%emt 0:00:06]} 6. Nf3 {[%emt 0:00:09]} Nc6 {[%emt 0:00:16]} 7. Ne2 {[%emt 0:01:13]} Be7 {[%emt 0:00:48]} 8. c3 {[%emt 0:00:35]} O-O {[%emt 0:00:45]} 9. Be3 {[%emt 0:01:13] 9.h4 is the modern continuation. C11: French: Classical System: 4 e5 and 4 Bg5 dxe4.} Qb6 {[%emt 0:01:41]} 10. Qd2 {[%emt 0:00:59]} f6 {[%emt 0:01:44] [#]} 11. exf6 $146 {[%emt 0:17:28]} ({Predecessor:} 11. g3 Kh8 12. Bg2 cxd4 13. cxd4 Bb4 14. Nc3 Qa6 15. Kf2 fxe5 16. fxe5 Ndxe5 17. dxe5 Nxe5 {½-½ Fedoseev,V (2667)-Morozevich,A (2676) Moscow Nutcracker rapid 2016 (8.1)}) 11... Nxf6 {[%emt 0:00:12]} 12. dxc5 {[%emt 0:01:07]} Bxc5 {[%emt 0:01:56]} 13. Bxc5 {[%emt 0:00:05]} Qxc5 {[%emt 0:00:07]} 14. Ng3 {[%emt 0:13:09]} Ng4 {[%emt 0:16:25][%cal Of8f4] And now ...Rxf4! would win.} 15. h3 {[%emt 0:07:09] [#]} Qe3+ {[%emt 0:05:00]} (15... Ne3 $1 $17 16. b4 Nxf1 17. Rxf1 Qc4) 16. Qe2 $11 {[%emt 0:00:06] The position is equal.} Qxe2+ {[%emt 0:12:18]} ({Don't take} 16... Qxf4 17. Nh5 Qd6 18. hxg4 $16) 17. Kxe2 {[%emt 0:01:04]} Nf6 {[%emt 0:01:29]} 18. Rd1 {[%emt 0:10:46][%mdl 32768] Weighted Error Value: White=0.07 (flawless) /Black=0.10 (very precise) . Loss on time!?} 0-1

[Event "4NCL 2022-2023"]
[Site "Daventry"]
[Date "2023.02.12"]
[Round "6.38"]
[White "Pedersen, Carsten"]
[Black "Yao, Lan"]
[Result "0-1"]
[ECO "B23"]
[WhiteElo "2088"]
[BlackElo "2279"]
[Annotator "TA"]
[PlyCount "108"]
[EventDate "2022.10.20"]
[EventType "team-tourn"]
[EventCountry "ENG"]
[SourceTitle "playchess.com"]
[Source "ChessBase"]
[SourceQuality "1"]
[TimeControl "40/6000+30:2400+30"]

{[%evp 9,108,14,20,11,45,59,45,50,72,70,65,43,46,41,69,29,37,8,12,-2,10,0,0,2,10,17,32,31,38,40,56,38,45,33,42,11,26,32,31,31,31,23,31,17,19,22,28,26,13,-44,-63,-59,-59,-70,-27,-50,0,-79,-79,-77,-49,-45,-24,-29,-50,-239,-209,-427,-413,-409,-407,-388,-400,-391,-389,-354,-185,-290,-139,-268,-265,-348,-241,-249,-246,-265,-212,-354,-231,-247,-241,-245,-243,-334,-314,-621,-325,-534,-502,-486,-467]} 1. e4 {[%emt 0:00:01]} c5 {[%emt 0:03:31]} 2. Nc3 {[%emt 0:00:06]} a6 {[%emt 0:00:04]} 3. g3 {[%emt 0:00:04]} b5 {[%emt 0:00:03]} 4. Bg2 {[%emt 0:00:05]} Bb7 {[%emt 0:00:04]} 5. Nh3 {[%emt 0:00:33]} e6 {[%emt 0:00:41]} 6. O-O {[%emt 0:00:07] B23: Closed Sicilian: Lines without g3.} b4 {[%emt 0:16:52]} 7. Na4 {[%emt 0:00:36] outshines the older 7.Ne2.} Nf6 {[%emt 0:03:49]} 8. Re1 {[%emt 0:02:08] White is slightly better.} e5 {[%emt 0:03:13]} 9. c3 {[%emt 0:07:05] [#]} Nc6 $146 {[%emt 0:08:22]} ({Predecessor:} 9... c4 10. b3 bxc3 11. Nxc3 Bc5 12. bxc4 O-O 13. Rb1 Bc8 14. Na4 Bd4 15. Ng5 d6 {1-0 Indjic,A (2628)-Grachev,B (2621) CRO-chT1A 28th 2019 (6.51)}) 10. d3 {[%emt 0:15:15]} Be7 {[%emt 0:04:35]} 11. Be3 {[%emt 0:04:52]} Qa5 {[%emt 0:09:29]} 12. a3 {[%emt 0:26:04] axb4 is the strong threat.} (12. d4 $5 {[%cal Rd4d5]}) 12... bxc3 {[%emt 0:02:15]} 13. bxc3 {[%emt 0:00:05]} O-O {[%emt 0:01:55]} 14. Qc2 {[%emt 0:11:18]} Rab8 {[%emt 0:11:51]} (14... Rfb8 {is interesting.} 15. Ng5 Ng4 16. Bd2 Qd8) 15. Reb1 {[%emt 0:08:33]} Ba8 {[%emt 0:01:06]} 16. Nb2 {[%emt 0:01:17][%cal Ba4b2,Bb2c4,Bc4a3,Ba3b5][%mdl 32]} Qc7 {[%emt 0:03:06]} 17. Nc4 {[%emt 0:03:05]} d6 {[%emt 0:13:02]} 18. Qa4 {[%emt 0:01:05]} a5 {[%emt 0:02:20]} 19. Ng5 {[%emt 0:06:02]} Rb7 {[%emt 0:03:21]} 20. Qc2 {[%emt 0:02:55]} Rfb8 {[%emt 0:00:36]} 21. a4 {[%emt 0:00:39]} Nd8 {[%emt 0:04:16]} 22. Na3 {[%emt 0:04:00]} h6 {[%emt 0:02:53]} 23. Nf3 {[%emt 0:01:41]} Rxb1+ {[%emt 0:00:55]} 24. Rxb1 {[%emt 0:00:04]} Rxb1+ {[%emt 0:03:05]} 25. Qxb1 {[%emt 0:00:12]} d5 {[%emt 0:00:31]} 26. Nb5 {[%emt 0:00:46]} Qb8 {[%emt 0:00:06][%cal Rd5e4]} 27. exd5 {[%emt 0:00:35]} Nxd5 {[%emt 0:02:48]} 28. Bd2 {[%emt 0:00:43]} Nb6 {[%emt 0:02:11]} 29. Qb3 {[%emt 0:01:28] [#]} ({Better is} 29. Na3 $11) 29... c4 $1 $15 {[%emt 0:02:40]} 30. dxc4 {[%emt 0:00:48]} Ne6 {[%emt 0:00:35]} 31. Be3 {[%emt 0:01:28][%cal Ob5c7]} Nc5 {[%emt 0:00:29]} 32. Qa2 {[%emt 0:00:51]} Bc6 {[%emt 0:03:12]} (32... Be4 $15) 33. Nd2 {[%emt 0:02:48]} (33. Qe2 $11 {keeps the balance.}) 33... Bxg2 $17 {[%emt 0:00:17]} 34. Kxg2 {[%emt 0:00:01]} Qb7+ {[%emt 0:00:54]} 35. Kg1 {[%emt 0:00:28]} Qc6 {[%emt 0:01:19]} 36. Nb3 {[%emt 0:05:27]} Nxb3 {[%emt 0:00:44]} ({Much less strong is} 36... Nbxa4 37. Nxc5 Nxc5 38. Qxa5 $11) 37. Qxb3 {[%emt 0:00:03] Now White is beyond hope.} (37. Bxb6 $15 Qxc4 38. Be3) 37... Nxc4 $19 {[%emt 0:00:20]} 38. Ba7 {[%emt 0:04:17]} (38. Bc1 {only move.}) 38... Nd2 {[%emt 0:00:43]} 39. Qd1 {[%emt 0:00:43]} Nf3+ {[%emt 0:00:11][%mdl 64] [#] Deflection} 40. Kf1 {[%emt 0:00:45]} Nxh2+ {[%emt 0:00:32]} 41. Kg1 {[%emt 0:40:15]} Nf3+ {[%emt 0:40:36]} 42. Kf1 {[%emt 0:00:08]} Ng5 {[%emt 0:00:00]} (42... h5 $142 43. Qd3 h4 44. gxh4 e4) 43. Qd3 {[%emt 0:00:00]} (43. Be3 $142) 43... Ne6 {[%emt 0:00:00]} (43... Qh1+ $19 {and Black stays clearly on top.} 44. Ke2 Qh5+ 45. Kd2 Qg4) 44. f3 {[%emt 0:00:00]} (44. Kg1 $17) 44... Ng5 {[%emt 0:00:00]} 45. Kg2 {[%emt 0:00:00]} e4 {[%emt 0:00:00]} 46. fxe4 {[%emt 0:00:00]} Nxe4 {[%emt 0:00:00]} ({Avoid the trap} 46... Qe6 $2 47. Bf2) 47. Qf3 {[%emt 0:00:00]} Qe6 {[%emt 0:00:00] Threatens to win with ...Qa2+.} 48. Kg1 {[%emt 0:00:00]} (48. Nd4 $142 Qa2+ 49. Qe2) 48... Qg6 {[%emt 0:00:00]} 49. Kh2 {[%emt 0:00:00]} Ng5 {[%emt 0:00:00]} 50. Qe2 {[%emt 0:00:00]} Bf8 {[%emt 0:00:00]} 51. Bb8 {[%emt 0:00:00]} Qc6 {[%emt 0:00:00]} 52. Bc7 $2 {[%emt 0:00:00]} (52. Ba7) 52... Qd7 {[%emt 0:00:00]} 53. Qg2 $2 {[%emt 0:03:12]} (53. g4) 53... Qg4 {[%emt 0:00:00]} 54. Nd4 {[%emt 0:00:58]} Qh5+ {[%emt 0:00:00] Weighted Error Value: White=0.46/Black=0.31} 0-1

[Event "4NCL 2022-2023"]
[Site "Daventry"]
[Date "2023.02.12"]
[Round "6.39"]
[White "Stoyanov, Viktor"]
[Black "Serbanescu, Diana-Maria"]
[Result "1-0"]
[ECO "C41"]
[WhiteElo "2243"]
[BlackElo "1978"]
[Annotator "TA"]
[PlyCount "135"]
[EventDate "2022.10.20"]
[EventType "team-tourn"]
[EventCountry "ENG"]
[SourceTitle "playchess.com"]
[Source "ChessBase"]
[SourceQuality "1"]
[TimeControl "40/6000+30:2400+30"]

{[%evp 9,135,11,18,17,62,29,29,21,51,45,30,39,31,28,31,22,13,6,16,0,25,29,11,17,28,28,29,29,29,29,30,29,35,8,47,45,46,46,42,31,31,19,27,32,47,7,33,40,37,30,89,85,89,97,102,68,60,34,41,29,44,24,29,9,10,4,5,6,7,0,0,7,7,0,0,0,0,0,0,0,0,0,8,8,8,0,0,0,0,0,0,0,0,0,0,0,0,0,0,0,8,0,8,8,8,8,8,8,8,8,8,0,0,0,0,0,29980,29981,29981,29982,29986,29987,29987,29988,29990,29991,29991,29992]} 1. e4 {[%emt 0:05:15]} d6 {[%emt 0:00:30]} 2. d4 {[%emt 0:00:15]} Nf6 {[%emt 0:00:07]} 3. Nc3 {[%emt 0:00:07]} e5 {[%emt 0:00:28]} 4. Nf3 {[%emt 0:00:14]} Nbd7 {[%emt 0:00:05]} 5. Rg1 {[%emt 0:00:49]} h6 {[%emt 0:12:11]} 6. g4 {[%emt 0:01:20] C41: Philidor Defence.} exd4 {[%emt 0:03:43]} 7. Qxd4 {[%emt 0:01:40]} Nc5 {[%emt 0:12:26] [#]} 8. g5 $146 {[%emt 0:23:15] White has an edge.} ({Predecessor:} 8. h3 Bd7 9. Be3 Bc6 10. g5 Ne6 11. Qd3 hxg5 12. Nxg5 Nxg5 13. Rxg5 g6 14. e5 Nh7 15. Rxg6 dxe5 16. Qf5 Qe7 17. Rxc6 bxc6 18. Bg2 Qd6 19. Rd1 {1-0 Euler,G (2351)-Kunin,V (2548) Oberliga Ost-B 0809 2008 (8.1)}) 8... hxg5 {[%emt 0:13:40]} 9. Bxg5 {[%emt 0:01:04]} ({Weaker is} 9. Rxg5 Ne6 10. Qa4+ c6 $19) 9... Ne6 {[%emt 0:04:09]} 10. Qc4 {[%emt 0:00:43]} c6 {[%emt 0:06:16]} 11. O-O-O {[%emt 0:03:49] Hoping for e5.} Qc7 {[%emt 0:06:28]} 12. h4 {[%emt 0:04:47]} Bd7 {[%emt 0:02:37]} 13. Qe2 {[%emt 0:04:47]} O-O-O {[%emt 0:12:47]} 14. e5 {[%emt 0:03:06]} Nxg5 {[%emt 0:05:49]} 15. Nxg5 {[%emt 0:01:09]} Re8 $1 {[%emt 0:02:12]} 16. Nxf7 {[%emt 0:12:18]} Rxh4 {[%emt 0:03:26][%cal Rd6e5]} (16... Bg4 {with more complications.} 17. Qc4 Be6 18. Bh3 Qxf7 19. exf6 gxf6 20. Rge1 d5) 17. Nxd6+ {[%emt 0:07:08]} Bxd6 {[%emt 0:01:54]} 18. Rxd6 {[%emt 0:00:13]} Qxd6 {[%emt 0:03:26]} 19. exd6 {[%emt 0:00:02]} Rxe2 {[%emt 0:00:08]} 20. Bxe2 {[%emt 0:00:09]} Ne8 {[%emt 0:00:07]} 21. f3 {[%emt 0:07:03]} Rh6 {[%emt 0:05:34]} 22. Ne4 {[%emt 0:02:42]} Bf5 {[%emt 0:00:55]} 23. Bd3 {[%emt 0:04:44]} Bxe4 {[%emt 0:04:54]} 24. fxe4 {[%emt 0:02:45]} Rxd6 $14 {[%emt 0:01:30][%mdl 4096] Endgame KRB-KRN} 25. e5 {[%emt 0:01:58]} Rd5 {[%emt 0:00:08]} 26. Rg5 {[%emt 0:00:19]} Kd8 {[%emt 0:01:14]} 27. Bg6 {[%emt 0:00:58]} Rd7 {[%emt 0:00:47]} 28. Bf5 {[%emt 0:03:04]} Re7 {[%emt 0:00:07]} 29. Bg4 {[%emt 0:00:14]} Kc7 {[%emt 0:01:04]} (29... Nc7 $11 {keeps the balance.}) 30. Kd2 $16 {[%emt 0:00:13]} Kd8 {[%emt 0:02:22]} 31. Kd3 {[%emt 0:00:34]} g6 {[%emt 0:00:51]} 32. Kd4 {[%emt 0:00:42]} ({Much less strong is} 32. Rxg6 Rxe5 33. c4 Ke7 $14) 32... Rg7 {[%emt 0:00:05]} 33. Ke4 {[%emt 0:02:11]} Ke7 {[%emt 0:00:21]} 34. Bc8 {[%emt 0:01:10]} Kd8 {[%emt 0:01:09]} 35. Be6 {[%emt 0:00:10]} Ke7 {[%emt 0:00:11]} 36. Bb3 {[%emt 0:00:07]} Nc7 {[%emt 0:04:49]} 37. a4 {[%emt 0:04:52]} Ne6 {[%emt 0:00:00]} 38. Bxe6 {[%emt 0:00:06]} Kxe6 $11 {[%emt 0:00:00] KR-KR} 39. b4 {[%emt 0:00:12][%cal Bb2b4,Bb4b5][%mdl 32]} Rg8 {[%emt 0:00:00]} 40. c4 {[%emt 0:00:16]} Rg7 {[%emt 0:00:51]} 41. c5 {[%emt 0:40:18]} Rg8 {[%emt 0:00:00]} 42. b5 {[%emt 0:00:00]} Kf7 {[%emt 0:00:09]} 43. Rg3 {[%emt 0:00:00] Threatens to win with Rd3.} Rh8 {[%emt 0:02:06]} 44. Rf3+ {[%emt 0:00:00]} Ke7 {[%emt 0:00:07]} 45. bxc6 {[%emt 0:00:00]} bxc6 {[%emt 0:00:06]} 46. Rf6 {[%emt 0:00:00]} Rh4+ {[%emt 0:00:40]} 47. Ke3 {[%emt 0:00:00]} Rxa4 {[%emt 0:04:34]} 48. Rxc6 {[%emt 0:00:00]} g5 {[%emt 0:00:35]} 49. Rg6 {[%emt 0:00:00]} g4 {[%emt 0:02:04]} 50. c6 {[%emt 0:00:00]} Rc4 {[%emt 0:03:50]} 51. Kd3 {[%emt 0:00:00]} Rc1 {[%emt 0:00:35]} 52. Kd4 {[%emt 0:00:00]} g3 {[%emt 0:00:38]} 53. Kd5 {[%emt 0:00:00] And now Rg7+ would win.} Rd1+ {[%emt 0:00:52]} 54. Ke4 {[%emt 0:00:00]} Rc1 {[%emt 0:02:57]} 55. Kf4 {[%emt 0:00:00]} (55. Rxg3 {simplifies} Rxc6 56. Kf5 Kf7 57. Ra3) 55... g2 {[%emt 0:01:10][%mdl 64] Deflection} 56. Rxg2 {[%emt 0:00:00]} Rxc6 {[%emt 0:00:12]} 57. Kf5 {[%emt 0:00:00]} Kf7 {[%emt 0:02:51]} 58. Rh2 {[%emt 0:00:00]} Kg7 {[%emt 0:02:11]} 59. Rd2 {[%emt 0:00:00]} Rc7 {[%emt 0:01:46]} 60. Ke6 {[%emt 0:00:00] White wants to mate with Rd7+.} a5 $1 {[%emt 0:01:49]} 61. Kd6 {[%emt 0:00:00]} Ra7 {[%emt 0:04:07]} 62. e6 {[%emt 0:00:00][%cal Be5e6,Be6e7][%mdl 32] White threatens e7 and mate.} a4 $2 {[%emt 0:01:00][%mdl 8192] [#]} (62... Ra6+ $11 63. Ke7 Ra7+ 64. Kd6 Ra6+ 65. Ke7 Ra7+ 66. Kd8 Kf6) 63. e7 $1 {[%emt 0:00:00] White mates.} Ra6+ {[%emt 0:00:14]} 64. Kd7 {[%emt 0:00:00]} Ra7+ {[%emt 0:00:19]} 65. Ke6 {[%emt 0:00:00]} Ra6+ {[%emt 0:02:25] [#]} 66. Rd6 $1 {[%emt 0:00:00]} Ra8 {[%emt 0:00:11]} 67. Rd8 {[%emt 0:00:00]} Ra6+ {[%emt 0:00:05]} 68. Kd5 {[%emt 0:00:00] Weighted Error Value: White=0.05 (flawless) /Black=0.05 (flawless)} 1-0

[Event "4NCL 2022-2023"]
[Site "Daventry"]
[Date "2023.02.12"]
[Round "6.40"]
[White "Zulfic, Fedja"]
[Black "Kalaiyalahan, Akshaya"]
[Result "1-0"]
[ECO "D30"]
[WhiteElo "2136"]
[BlackElo "2148"]
[Annotator "TA"]
[PlyCount "33"]
[EventDate "2022.10.20"]
[EventType "team-tourn"]
[EventCountry "ENG"]
[SourceTitle "playchess.com"]
[Source "ChessBase"]
[SourceQuality "1"]
[TimeControl "40/6000+30:2400+30"]

{[%evp 10,33,0,-3,-3,0,0,0,0,0,18,14,18,4,15,43,445,442,1491,1430,29992,29993,29995,29996,29998,29996]} 1. d4 {[%emt 0:07:32]} Nf6 {[%emt 0:00:11]} 2. c4 {[%emt 0:00:19]} e6 {[%emt 0:00:06]} 3. Nf3 {[%emt 0:01:55]} d5 {[%emt 0:00:17]} 4. e3 {[%emt 0:01:11]} Be7 {[%emt 0:00:47]} 5. Nbd2 {[%emt 0:02:45][%cal Bb1d2,Bd2c4,Bc4e5][%mdl 32]} O-O {[%emt 0:01:40]} 6. Bd3 {[%emt 0:00:23]} dxc4 {[%emt 0:02:11] D30: Queen's Gambit Declined: Systems without Nc3.} 7. Nxc4 {[%emt 0:00:09]} c5 {[%emt 0:00:18]} 8. Nce5 {[%emt 0:02:23]} cxd4 {[%emt 0:08:59] The position is equal.} 9. exd4 {[%emt 0:00:17]} Bb4+ {[%emt 0:01:00] [#]} 10. Kf1 $146 {[%emt 0:05:34]} ({Predecessor:} 10. Bd2 Bxd2+ 11. Qxd2 Bd7 12. O-O Bc6 13. Qf4 Bd5 14. a3 Nc6 15. Rad1 {½-½ Rozentalis,E-Kharitonov,A URS U26-ch Lvov 1985}) 10... b6 {[%emt 0:09:36]} 11. Bg5 {[%emt 0:07:12] Threatens to win with Be4.} Bb7 {[%emt 0:04:06] Prevents Be4.} 12. h4 {[%emt 0:10:11][%cal Bh2h4,Bh4g5][%mdl 32]} Be7 {[%emt 0:19:53][%mdl 8192] [#] This move loses the game for Black.} ({Black should try} 12... Nbd7 $14) 13. Bxf6 $1 $18 {[%emt 0:05:30]} gxf6 {[%emt 0:00:47] [#]} (13... Nd7 $142 14. Bxh7+ Kxh7) 14. Ng5 $1 {[%emt 0:05:27][%cal Od1h5][%mdl 512] Qh5! would kill now.} fxg5 {[%emt 0:08:08]} (14... Bxg2+ 15. Kxg2) 15. Qh5 {[%emt 0:01:56][%csl Gd3][%cal Rh5h7] White mates.} h6 {[%emt 0:03:20]} 16. Qxh6 {[%emt 0:01:15][%csl Gd3][%cal Rh6h7]} f5 {[%emt 0:01:50]} 17. hxg5 {[%emt 0:00:44] Artfully played by Zulfic.   Weighted Error Value: White=0.00 (flawless) /Black=0.86} 1-0